bitfinex-derivatives/quotes_ETHF0:USTF0_20210111
["timestamp","ask_amount","ask_price","bid_price","bid_amount"]
[1610397552485,78.534,980.26,980.02,1.919]
[1610397552688,4.00959,980.62,979.4,1.70615157]
[1610397552885,58.1531,980.03,979.55,0.56998147]
[1610397553086,58.1531,980.03,979.4,1.30394442]
[1610397553287,4.00959,979.41,979.16,1.14125781]
[1610397553487,84.4827,979.21,979.06,0.89203008]
[1610397553686,84.4827,979.21,977.79,58.2019]
[1610397553687,84.4827,979.21,978.76,1.71264458]
[1610397553889,84.4827,979.21,979.04,0.10424724]
[1610397554087,84.4827,979.21,979.04,1.532]
[1610397554289,4.00959,979.41,979.19,0.28485316]
[1610397554690,4.00959,979.41,979.16,0.28449841]
[1610397554892,4.00959,979.41,979.13,0.28423138]
[1610397555291,4.00959,979.14,978.95,0.85192133]
[1610397555491,4.00959,979.14,978.95,0.56772133]
[1610397555696,4.00959,979.14,979.12,0.28402982]
[1610397556093,4.00959,979.14,979.07,0.28392792]
[1610397556495,4.00959,979.14,978.27,2.26942176]
[1610397556695,4.00959,979.14,978.23,2.26881443]
[1610397557294,80.4189,979.63,978.64,4.00959]
[1610397557494,80.4189,979.63,978.64,1.613]
[1610397557694,2.123,979.67,978.64,1.613]
[1610397557895,8.1749438,979.58,978.64,1.613]
[1610397558295,68.0507,980.0,978.64,1.613]
[1610397558496,2.0412,979.99,978.64,1.613]
[1610397559095,68.0507,980.0,978.64,1.613]
[1610397559295,4.00959,979.14,979.01,4.00959]
[1610397559495,1.719,979.82,979.01,4.00959]
[1610397559698,1.719,979.82,979.1,58.0872]
[1610397560299,2.48273551,981.45,979.1,58.0872]
[1610397560500,2.48259169,981.64,979.1,58.0872]
[1610397561098,2.4826326,981.62,979.1,58.0872]
[1610397561501,2.48265545,981.6,979.0,2.25496414]
[1610397561704,2.48265545,981.6,979.5,60.796]
[1610397561705,2.062,981.26,979.5,60.796]
[1610397561898,2.062,981.26,979.5,63.248]
[1610397562799,9.92805451,982.63,979.51,2.0609]
[1610397562800,2.48162283,981.95,979.51,2.0609]
[1610397563099,2.48152352,982.1,979.51,2.0609]
[1610397563300,4.00959,980.76,980.18,4.00959]
[1610397563500,4.00959,980.76,979.5,2.452]
[1610397564101,4.00959,980.76,979.87,0.56171688]
[1610397564301,4.00959,980.76,979.87,2.119]
[1610397564902,2.01,980.75,979.87,2.119]
[1610397565102,2.098,980.75,979.87,2.119]
[1610397565302,4.00959,979.88,979.87,2.119]
[1610397565503,4.00959,979.88,979.63,0.56100784]
[1610397565903,4.00959,979.88,979.41,0.56118429]
[1610397566304,4.00959,979.88,979.32,0.56126145]
[1610397566504,1.836,980.0,979.37,0.28068208]
[1610397566704,1.548,980.33,979.37,0.28068208]
[1610397566905,1.548,980.33,979.4,0.2806466]
[1610397567105,1.646,980.75,979.4,1.9866466]
[1610397567306,4.00959,980.05,979.62,4.00959]
[1610397567706,4.00959,980.05,979.4,1.706]
[1610397569108,2.313,980.46,979.4,1.706]
[1610397569307,4.00959,980.3,980.25,4.00959]
[1610397569509,4.00959,980.3,979.4,1.706]
[1610397569708,4.00959,980.3,979.49,0.28172165]
[1610397569908,4.00959,980.3,979.43,0.2820019]
[1610397570307,4.00959,980.3,979.4,1.706]
[1610397571109,2.313,980.46,979.4,1.706]
[1610397571308,2.313,980.46,980.31,4.00959]
[1610397571507,4.00959,980.72,980.31,4.00959]
[1610397571908,2.0117,980.71,979.76,2.332]
[1610397572108,4.00959,980.72,979.76,2.332]
[1610397573310,4.00959,980.51,979.76,2.332]
[1610397574712,6.02759,980.51,979.76,2.332]
[1610397574911,4.00959,980.51,979.76,2.332]
[1610397575312,4.00959,979.77,979.76,2.332]
[1610397576111,4.00959,979.77,979.4,1.706]
[1610397576312,4.00959,979.77,979.11,0.28327743]
[1610397576511,4.00959,979.77,979.05,0.28335505]
[1610397577215,4.00959,979.77,978.66,1.41658372]
[1610397577216,4.00959,979.77,979.02,0.28339822]
[1610397577414,4.00959,979.03,979.02,0.28339822]
[1610397577613,4.00959,979.03,978.89,0.28349245]
[1610397578014,4.00959,979.03,978.76,0.28363904]
[1610397578213,4.00959,979.03,978.65,0.2837241]
[1610397578613,4.00959,979.03,978.55,0.5674482]
[1610397578614,4.00959,979.03,978.64,0.28368654]
[1610397578813,4.00959,979.03,978.61,0.28366678]
[1610397579214,4.00959,979.03,978.48,0.28388449]
[1610397579413,4.00959,978.49,978.48,0.28388449]
[1610397579616,4.00959,978.49,978.32,0.28417093]
[1610397579815,4.00959,978.49,978.16,0.28445044]
[1610397580214,4.00959,978.49,977.77,1.42225222]
[1610397580215,1.513,978.79,978.13,0.28453533]
[1610397580416,1.513,978.79,978.06,0.28453412]
[1610397580815,1.513,978.79,978.03,0.28448068]
[1610397581215,1.513,978.79,977.98,0.28453647]
[1610397581415,4.00959,977.99,977.93,1.57]
[1610397582016,4.00959,977.99,977.93,0.28390818]
[1610397582217,4.00959,977.99,977.61,0.56819383]
[1610397582416,4.00959,977.99,977.51,0.85229075]
[1610397582618,4.00959,977.99,977.25,0.85355167]
[1610397583018,4.00959,977.99,977.08,1.13733798]
[1610397583316,1.876,978.15,976.73,80.8664]
[1610397583317,4.00959,977.19,977.13,1.13663364]
[1610397583516,1.876,978.15,977.13,1.13663364]
[1610397583717,1.876,978.15,977.13,2.091]
[1610397584018,1.876,978.15,977.18,1.13568168]
[1610397584419,1.876,978.15,977.13,2.091]
[1610397585319,4.00959,977.14,977.13,2.091]
[1610397586320,60.712,977.89,977.13,2.091]
[1610397586521,1.876,978.15,977.13,2.091]
[1610397587321,4.00959,977.26,977.13,2.091]
[1610397588521,4.00959,977.26,977.13,1.1787]
[1610397588922,4.00959,977.26,976.58,1.13757913]
[1610397589323,4.00959,976.64,976.57,1.13761301]
[1610397589723,4.00959,976.64,976.52,1.13737326]
[1610397590123,4.00959,976.64,976.39,1.13832883]
[1610397590324,78.527,977.46,976.39,1.13832883]
[1610397590524,78.527,977.46,976.39,2.77632883]
[1610397590725,78.527,977.46,976.43,1.13784735]
[1610397591327,4.00959,976.74,976.43,1.13784735]
[1610397591528,4.00959,976.74,976.4,1.13752141]
[1610397591827,4.00959,976.74,976.42,1.13716468]
[1610397592127,4.00959,976.74,976.39,1.638]
[1610397592128,4.00959,976.74,976.73,0.28426084]
[1610397592327,4.00959,976.74,976.73,2.59226084]
[1610397592528,4.00959,976.74,976.73,2.308]
[1610397593828,78.527,977.46,976.73,2.308]
[1610397594028,2.031,977.67,976.73,2.308]
[1610397594229,6.2694,977.89,976.82,0.2846633]
[1610397594630,6.2694,977.89,976.88,0.28444884]
[1610397594829,6.2694,977.89,976.95,0.28409957]
[1610397595229,6.2694,977.89,976.98,0.2838487]
[1610397595432,4.00959,976.99,976.98,0.2838487]
[1610397595830,4.00959,976.99,976.94,1.742]
[1610397596831,2.182,977.67,976.73,2.308]
[1610397597232,2.182,977.67,976.79,0.28273513]
[1610397597431,2.182,977.67,977.24,4.00959]
[1610397597630,4.00959,977.7,977.24,4.00959]
[1610397598031,6.2694,977.89,977.01,1.783]
[1610397598431,2.0637,978.51,977.06,0.28191406]
[1610397598633,6.1733,978.35,977.1,0.28204356]
[1610397598830,12.1402,978.35,977.1,0.28204356]
[1610397599034,12.1402,978.35,977.08,0.28205022]
[1610397599431,4.00959,977.3,977.04,0.28199644]
[1610397599831,4.00959,977.3,977.01,1.783]
[1610397599832,2.071,978.11,977.02,0.2819652]
[1610397600031,2.071,978.11,977.11,0.28179275]
[1610397600431,2.071,978.11,977.18,0.28110204]
[1610397600632,2.071,978.11,977.01,1.783]
[1610397600633,12.1402,978.35,977.3,0.28080484]
[1610397600832,12.1402,978.35,977.3,2.62880484]
[1610397601031,12.1402,978.35,977.4,0.2806413]
[1610397601233,12.1402,978.35,977.43,0.28062403]
[1610397601432,4.00959,977.83,977.68,4.00959]
[1610397602134,61.0727,979.12,977.68,4.00959]
[1610397602333,11.8285,979.11,977.68,4.00959]
[1610397602736,8.71333497,979.35,977.68,4.00959]
[1610397602737,30.49978207,979.35,977.68,4.00959]
[1610397602935,30.48729301,979.59,977.73,0.27976828]
[1610397603133,6.3738,979.34,977.73,0.27976828]
[1610397603333,6.3738,979.34,977.68,4.00959]
[1610397603334,8.3708,979.34,977.96,0.2794969]
[1610397603533,1.997,979.34,979.16,4.00959]
[1610397604535,30.47222137,980.23,978.99,2.441]
[1610397604734,30.46814175,980.36,978.99,2.441]
[1610397604934,30.46345746,980.48,978.99,2.441]
[1610397605434,4.00959,979.81,979.65,4.00959]
[1610397605835,2.097,980.38,979.65,4.00959]
[1610397607037,5.9706,980.51,979.65,4.00959]
[1610397607437,4.00959,980.24,979.85,4.00959]
[1610397608639,4.00959,980.24,979.6,1.938]
[1610397609437,4.00959,980.09,979.6,1.938]
[1610397609839,44.11691616,980.86,979.6,1.938]
[1610397610238,2.0553,980.85,979.6,1.938]
[1610397610538,30.45246609,980.7,979.6,1.938]
[1610397610738,31.98346609,980.7,979.6,1.938]
[1610397610940,44.12804061,980.54,979.6,1.938]
[1610397611139,44.12804061,980.54,978.99,2.441]
[1610397611340,30.46077169,980.38,978.55,0.28081759]
[1610397611538,30.46921576,980.2,978.37,0.28128006]
[1610397611939,30.47205103,980.06,978.24,0.28167044]
[1610397612138,32.77905103,980.06,978.24,0.28167044]
[1610397612338,30.47347064,980.03,978.22,0.28182345]
[1610397612538,2.307,980.06,978.2,0.28186075]
[1610397612539,30.47327874,980.01,978.2,0.28186075]
[1610397612939,44.16594592,979.85,978.04,0.2822604]
[1610397613137,45.84494592,979.85,978.04,0.2822604]
[1610397613338,45.84494592,979.85,977.64,1.41130201]
[1610397613339,44.16548648,979.73,978.05,2.0552]
[1610397613539,4.00959,978.49,978.05,2.0552]
[1610397614543,4.00959,978.49,978.02,4.00959]
[1610397614941,2.0342,978.48,977.96,1.837]
[1610397615142,4.00959,978.49,977.74,0.84866785]
[1610397615143,4.00959,978.49,977.83,0.28304576]
[1610397615342,4.00959,978.49,977.79,0.28326134]
[1610397615542,4.00959,977.96,977.79,0.28326134]
[1610397615742,4.00959,977.96,976.24,2.0411]
[1610397615743,4.00959,977.96,977.66,0.28368787]
[1610397616142,4.00959,977.96,977.48,0.28391377]
[1610397616444,4.00959,977.96,977.3,0.28418228]
[1610397616842,4.00959,977.96,977.29,0.28432962]
[1610397617141,4.00959,977.96,977.27,0.28452143]
[1610397617542,4.00959,977.43,977.25,0.28457333]
[1610397617741,1.94,977.62,977.25,0.28457333]
[1610397617943,1.94,977.62,977.27,0.28471239]
[1610397618142,1.94,977.62,977.35,0.2846742]
[1610397618442,1.94,977.62,977.38,0.28461514]
[1610397618842,1.94,977.62,977.42,0.28453301]
[1610397619044,2.409,978.03,977.42,0.28453301]
[1610397619244,2.409,978.03,977.47,0.28448002]
[1610397619444,4.00959,977.8,977.49,0.28444348]
[1610397619845,4.00959,977.8,977.36,0.28437332]
[1610397620046,4.00959,977.8,977.21,0.28445286]
[1610397620449,4.00959,977.8,977.18,0.28450554]
[1610397620849,4.00959,977.8,977.13,0.2844335]
[1610397621248,4.00959,977.8,977.06,0.28441539]
[1610397621448,4.00959,977.7,977.09,0.28448189]
[1610397621649,2.449,977.82,977.09,0.28448189]
[1610397621848,2.449,977.82,977.23,0.28428692]
[1610397622048,2.409,978.03,977.23,0.28428692]
[1610397622247,2.409,978.03,977.17,2.402]
[1610397622248,2.41,978.23,977.32,0.2841284]
[1610397622548,2.41,978.23,977.31,0.28410491]
[1610397622949,2.41,978.23,977.36,0.28413461]
[1610397623348,2.41,978.23,977.53,0.28399818]
[1610397623552,4.00959,978.42,977.73,0.28377117]
[1610397623747,4.00959,978.42,977.73,1.78877117]
[1610397623948,5.9257,979.08,977.81,0.28370366]
[1610397624353,5.9257,979.08,977.73,1.505]
[1610397624354,5.9257,979.08,977.89,0.28363221]
[1610397624849,5.9257,979.08,977.97,0.28365523]
[1610397625048,5.9257,979.08,978.07,0.28366885]
[1610397625451,4.00959,978.83,978.52,4.00959]
[1610397625850,4.00959,978.83,977.97,2.316]
[1610397625851,4.00959,978.83,978.17,0.28352428]
[1610397626050,4.00959,978.83,978.14,0.28378044]
[1610397626450,4.00959,978.83,978.06,0.28391973]
[1610397626651,4.00959,978.83,978.07,0.28390265]
[1610397626960,4.00959,978.83,977.99,0.2840422]
[1610397627354,4.00959,978.83,977.97,2.316]
[1610397627554,2.312,979.01,977.97,2.316]
[1610397629153,2.084,979.25,977.98,0.28377984]
[1610397629556,2.084,979.25,977.97,2.316]
[1610397629557,4.00959,978.7,978.63,4.00959]
[1610397630553,4.00959,978.7,978.11,0.2833543]
[1610397630953,4.00959,978.7,978.07,0.28344549]
[1610397631353,4.00959,978.7,977.97,2.316]
[1610397631554,4.00959,977.98,977.87,0.28389878]
[1610397631756,4.00959,977.98,977.67,0.28425468]
[1610397632158,4.00959,977.98,977.57,0.2844445]
[1610397632355,4.00959,977.98,977.18,1.42222251]
[1610397632356,4.00959,977.98,977.43,0.28467186]
[1610397632757,2.0474,977.97,977.38,0.28454113]
[1610397632956,4.00959,977.98,977.38,0.28454113]
[1610397633157,4.00959,977.98,977.17,0.28479593]
[1610397633356,2.422,978.09,977.1,0.28474769]
[1610397633557,4.00959,977.82,977.64,4.00959]
[1610397634761,2.422,978.09,977.64,4.00959]
[1610397635159,1.538,978.39,977.65,2.0708]
[1610397635560,4.00959,977.95,977.64,1.827]
[1610397636360,4.00959,977.95,977.43,0.28367149]
[1610397636560,4.00959,977.95,977.36,0.2840491]
[1610397636760,4.00959,977.95,977.26,0.28441986]
[1610397637160,4.00959,977.95,977.24,0.28456884]
[1610397637561,4.00959,977.95,977.69,4.00959]
[1610397637762,2.0371,977.94,977.4,2.0595]
[1610397637962,2.0371,977.94,977.26,0.28456821]
[1610397638162,2.0371,977.94,977.18,0.2844637]
[1610397638563,2.0371,977.94,977.11,2.0662]
[1610397638564,2.0371,977.94,977.11,0.1184]
[1610397638762,4.00959,977.95,976.95,0.28463969]
[1610397638961,83.744,977.94,976.95,0.28463969]
[1610397639162,83.744,977.94,976.87,0.28476997]
[1610397639462,83.744,977.94,976.76,0.28495687]
[1610397640263,83.744,977.94,976.8,0.2847835]
[1610397640462,83.744,977.94,976.79,0.28477479]
[1610397640662,2.0516,977.93,976.79,0.28477479]
[1610397640862,83.744,977.94,976.8,0.28424002]
[1610397641162,83.744,977.94,976.81,0.28377115]
[1610397641563,83.744,977.94,976.61,0.85272005]
[1610397641564,4.00959,977.2,977.15,4.00959]
[1610397641762,1.493,977.62,977.15,4.00959]
[1610397642963,1.618,978.01,977.15,4.00959]
[1610397643163,1.618,978.01,977.17,0.28229488]
[1610397643363,6.2151,978.38,977.17,0.28229488]
[1610397643564,4.00959,977.61,977.49,4.00959]
[1610397643964,4.00959,977.61,977.14,0.2824254]
[1610397644164,4.00959,977.61,977.11,0.28247526]
[1610397644564,4.00959,977.61,977.04,2.212]
[1610397644565,4.00959,977.61,977.09,0.28227147]
[1610397644966,4.00959,977.61,977.04,2.212]
[1610397644967,2.275,978.08,977.05,0.28227218]
[1610397645167,2.275,978.08,977.06,0.2820467]
[1610397645565,4.00959,977.79,977.69,4.00959]
[1610397645968,4.00959,977.79,977.22,0.2816254]
[1610397646170,4.00959,977.79,977.23,0.28154346]
[1610397646767,4.00959,977.79,977.04,2.212]
[1610397646768,4.00959,977.79,977.17,0.28161859]
[1610397647168,4.00959,977.79,977.1,0.28171465]
[1610397647367,4.00959,977.79,977.0,0.28190067]
[1610397647569,4.00959,977.01,977.0,0.28190067]
[1610397647768,2.18,977.36,976.88,0.2823107]
[1610397647968,2.18,977.36,976.92,0.28231928]
[1610397648369,2.18,977.36,976.99,0.28226203]
[1610397648772,1.723,977.87,977.08,0.28215277]
[1610397648969,2.275,978.08,977.18,0.28209347]
[1610397649170,6.2151,978.38,977.18,0.28209347]
[1610397649370,6.2151,978.38,977.31,0.28221489]
[1610397649570,4.00959,978.09,977.98,4.00959]
[1610397649770,46.68977211,979.07,977.98,4.00959]
[1610397649771,6.0798,978.99,977.98,4.00959]
[1610397651671,6.0798,978.99,977.73,1.967]
[1610397651672,4.00959,978.27,977.73,1.967]
[1610397652474,1.91,978.6,977.73,1.967]
[1610397653673,4.00959,978.98,978.25,4.00959]
[1610397655075,4.00959,978.98,978.04,1.86]
[1610397655277,4.00959,978.98,977.95,66.5782]
[1610397655473,5.95759,978.98,977.73,1.967]
[1610397655775,4.00959,978.25,977.69,4.00959]
[1610397657578,4.00959,978.1,977.69,4.00959]
[1610397658179,4.00959,978.1,977.33,0.28188321]
[1610397658379,4.00959,978.1,977.25,0.28221378]
[1610397658780,4.00959,978.1,977.18,0.28237815]
[1610397659179,4.00959,978.1,977.14,0.28243155]
[1610397659581,2.081,978.13,977.06,0.28259609]
[1610397659780,2.081,978.13,977.05,85.3958]
[1610397660180,4.00959,977.28,976.94,0.28278342]
[1610397660581,71.9026,977.24,976.92,0.28252802]
[1610397660982,71.9026,977.24,976.73,0.28307031]
[1610397661181,101.9026,977.24,976.58,0.28340456]
[1610397661381,30.0,977.24,976.58,0.28340456]
[1610397661583,67.87,976.77,976.44,0.28387306]
[1610397661782,4.00959,977.28,976.44,0.28387306]
[1610397661783,30.0,976.9,976.44,0.28387306]
[1610397661982,30.0,976.9,976.05,1.4193653]
[1610397661983,85.2641,976.64,976.16,0.28436629]
[1610397662184,4.00959,976.17,976.05,0.2847096]
[1610397662588,84.279,976.06,975.95,0.28496221]
[1610397662984,84.279,976.06,975.75,0.57029661]
[1610397663382,84.279,976.06,975.62,0.57076219]
[1610397663583,2.049,976.16,975.51,0.57117631]
[1610397663782,74.1542,975.6,975.41,0.85676447]
[1610397663983,76.1942,975.6,975.31,0.50831709]
[1610397664185,4.00959,975.32,975.24,0.85787687]
[1610397664384,4.00959,975.32,974.7,2.173]
[1610397664385,4.00959,975.32,975.12,0.85861319]
[1610397664584,75.0701,975.15,974.92,1.43102198]
[1610397664785,76.5741,975.15,974.71,1.43321096]
[1610397665184,76.5741,975.15,974.32,1.72221931]
[1610397665783,76.5741,975.15,974.33,1.72339113]
[1610397665985,1.504,975.15,974.24,1.72496206]
[1610397666185,4.00959,974.25,974.24,1.72496206]
[1610397666387,4.00959,974.25,974.14,1.72612214]
[1610397666587,84.6717,974.15,974.05,1.847]
[1610397666785,84.6717,974.15,973.89,1.72910231]
[1610397666986,84.6717,974.15,973.78,1.73004705]
[1610397667186,4.00959,974.25,973.78,1.73004705]
[1610397667387,4.00959,974.25,972.9,4.03677644]
[1610397667388,4.00959,974.25,973.7,1.73103473]
[1610397667586,4.00959,974.25,973.64,1.73162609]
[1610397667887,4.00959,974.25,973.57,1.73304576]
[1610397668088,4.00959,973.58,973.57,1.73304576]
[1610397668287,4.00959,973.58,973.56,2.378]
[1610397669786,4.00959,973.58,973.39,1.73583365]
[1610397669990,4.00959,973.58,973.19,2.31444487]
[1610397669991,4.00959,973.58,973.38,1.733999]
[1610397670192,79.7915,973.74,973.47,4.00959]
[1610397670393,2.138,974.27,973.47,4.00959]
[1610397670596,2.138,974.27,973.48,1.73174237]
[1610397670794,2.138,974.27,973.48,3.80314237]
[1610397670995,1.666,974.8,973.68,58.4971]
[1610397671194,1.666,974.8,973.69,2.0474]
[1610397671395,5.8625,975.88,973.69,2.0474]
[1610397671599,5.8625,975.88,974.03,1.72506287]
[1610397671796,5.8625,975.88,974.14,85.1536]
[1610397671797,2.0457,975.87,974.14,85.1536]
[1610397671998,2.027,975.87,974.16,1.72398995]
[1610397672198,2.027,975.87,974.28,1.7231237]
[1610397672397,2.027,975.87,974.28,3.7571237]
[1610397672598,2.027,975.87,974.41,1.7232094]
[1610397672997,2.0227,975.86,975.01,0.28718826]
[1610397673199,2.027,975.87,974.36,59.1319]
[1610397673200,2.027,975.87,974.89,0.28742353]
[1610397673599,2.027,975.87,974.88,0.28758204]
[1610397673799,2.027,975.87,974.84,0.28763148]
[1610397673998,8.20681165,975.77,974.84,0.28763148]
[1610397674200,2.0387,975.76,974.89,0.28814919]
[1610397674398,2.027,975.87,974.89,0.28814919]
[1610397674598,2.027,975.87,974.98,0.28818011]
[1610397674798,2.027,975.87,975.08,0.28813203]
[1610397675102,2.027,975.87,975.09,0.57581771]
[1610397675299,2.027,975.87,975.19,0.28790885]
[1610397675500,2.027,975.87,975.25,0.28805745]
[1610397675900,2.027,975.87,975.32,0.28816758]
[1610397676100,4.00959,975.33,975.32,0.28816758]
[1610397676300,4.00959,975.33,975.23,0.28861458]
[1610397676500,4.00959,975.33,975.15,0.2887769]
[1610397676900,4.00959,975.33,975.02,0.28918891]
[1610397677101,4.00959,975.33,975.11,0.28914405]
[1610397677700,4.00959,975.33,975.09,0.28924747]
[1610397677900,4.00959,975.33,975.15,0.28920931]
[1610397678302,4.00959,975.33,975.17,0.28930361]
[1610397678500,2.437,975.57,975.19,0.28944088]
[1610397678901,2.027,975.87,975.14,73.5869]
[1610397678902,2.027,975.87,975.2,0.86718063]
[1610397679100,5.8625,975.88,975.2,0.86718063]
[1610397679400,5.8625,975.88,975.19,2.234]
[1610397679401,5.8625,975.88,975.6,8.7894]
[1610397679600,5.8625,975.88,975.75,0.28862331]
[1610397680000,5.8625,975.88,975.84,0.28856798]
[1610397680200,4.00959,975.85,975.84,0.28856798]
[1610397680400,4.00959,975.85,975.74,0.28872025]
[1610397680804,4.00959,975.85,975.6,0.28909371]
[1610397681001,4.00959,975.85,975.46,0.28958262]
[1610397681201,4.00959,975.85,975.27,0.86874785]
[1610397681402,4.00959,975.85,975.08,0.87004444]
[1610397681801,4.00959,975.85,975.07,0.87076153]
[1610397682201,5.8625,975.88,975.12,0.87074818]
[1610397682603,5.8625,975.88,975.87,4.00959]
[1610397683204,5.8625,975.88,975.56,0.87154874]
[1610397683405,5.8625,975.88,975.72,1.924]
[1610397684304,1.7916,975.88,975.72,1.924]
[1610397684503,71.9708,977.52,975.72,1.924]
[1610397684706,4.00959,977.02,976.58,4.00959]
[1610397684904,4.00959,977.02,975.72,1.924]
[1610397684905,41.45574358,977.8,976.36,65.3249]
[1610397685204,41.44358292,977.92,976.36,65.3249]
[1610397685704,41.43836971,977.96,976.16,2.293]
[1610397685906,73.6007,977.87,976.16,2.293]
[1610397686104,75.4537,977.87,976.16,2.293]
[1610397686305,41.44721567,977.77,976.16,2.293]
[1610397686704,47.68382873,977.8,976.1,4.00959]
[1610397687306,75.4537,977.87,976.1,4.00959]
[1610397687307,123.13505383,977.87,976.1,4.00959]
[1610397688107,117.83989434,977.87,976.1,4.00959]
[1610397688409,47.68727361,977.79,976.1,4.00959]
[1610397688607,4.00959,976.48,976.42,4.00959]
[1610397688808,1.497,977.54,976.42,4.00959]
[1610397689008,1.497,977.54,976.42,5.68959]
[1610397690611,1.497,977.54,976.42,1.68]
[1610397692612,4.00959,976.74,976.65,4.00959]
[1610397692812,1.672,977.33,976.65,4.00959]
[1610397694013,1.497,977.54,976.65,4.00959]
[1610397694214,1.853,977.87,976.65,4.00959]
[1610397694614,1.853,977.87,976.5,1.582]
[1610397694615,52.03182727,978.24,976.77,4.00959]
[1610397695014,52.03201699,978.22,976.77,4.00959]
[1610397695215,53.78201699,978.22,976.77,4.00959]
[1610397695615,1.75,978.22,976.77,4.00959]
[1610397696216,1.75,978.22,976.79,0.29362712]
[1610397696414,1.75,978.22,976.79,2.49362712]
[1610397696614,4.00959,977.93,977.87,4.00959]
[1610397697016,1.75,978.22,977.87,4.00959]
[1610397697216,6.0756,978.51,977.58,69.2368]
[1610397698617,6.0756,978.51,978.33,4.00959]
[1610397700624,6.0756,978.51,978.16,1.833]
[1610397700625,6.0756,978.51,978.5,4.00959]
[1610397700821,4.0548,978.51,978.5,6.48459]
[1610397701224,4.00959,978.83,978.5,6.48459]
[1610397701425,51.95206639,979.71,978.5,6.48459]
[1610397701625,51.94083731,979.74,978.51,10.1881]
[1610397702024,51.93620627,979.87,978.51,10.1881]
[1610397702425,51.93620627,979.87,978.5,6.48459]
[1610397702426,51.93417656,979.91,978.5,6.48459]
[1610397702625,4.00959,979.01,978.52,60.779]
[1610397702825,4.00959,979.01,978.5,2.475]
[1610397703633,4.00959,979.01,978.16,1.833]
[1610397703828,4.00959,979.01,977.87,66.0577903]
[1610397704029,6.39059,979.01,977.87,65.7626]
[1610397704627,4.00959,978.16,978.09,4.00959]
[1610397705230,2.341,978.52,978.09,4.00959]
[1610397706232,2.381,979.01,977.95,1.79]
[1610397706632,4.00959,978.45,978.34,4.00959]
[1610397706832,4.00959,978.45,977.95,1.79]
[1610397707031,5.70459,978.45,977.95,1.79]
[1610397707432,5.70459,978.45,977.87,65.7626]
[1610397707632,5.70459,978.45,977.64,0.2961539]
[1610397708233,5.70459,978.45,977.56,0.29645713]
[1610397708634,4.00959,978.1,977.96,4.00959]
[1610397709036,1.695,978.45,977.96,4.00959]
[1610397710038,1.695,978.45,977.65,61.7604]
[1610397710639,4.00959,978.15,977.78,4.00959]
[1610397710841,4.00959,978.15,977.79,2.0263]
[1610397711041,4.00959,978.15,977.78,4.00959]
[1610397711240,2.415,978.15,977.78,4.00959]
[1610397712241,1.695,978.45,977.78,4.00959]
[1610397712441,2.385,978.68,977.78,4.00959]
[1610397712740,4.00959,978.71,978.27,4.00959]
[1610397713140,4.00959,978.71,977.65,61.7604]
[1610397713342,4.00959,978.71,977.7,0.2943031]
[1610397713742,4.00959,978.71,977.67,0.29440531]
[1610397713943,4.00959,978.71,977.73,0.29446464]
[1610397714342,4.00959,978.71,977.75,0.29462617]
[1610397714543,4.00959,978.71,977.75,2.16862617]
[1610397714742,2.381,979.01,977.75,1.874]
[1610397714743,4.00959,977.9,977.75,1.874]
[1610397715544,5.80759,977.9,977.21,0.29663264]
[1610397715944,5.80759,977.9,977.08,0.29680753]
[1610397716144,5.80759,977.9,976.96,0.29688481]
[1610397716544,5.80759,977.9,976.59,2.0737]
[1610397716545,5.80759,977.9,976.88,0.296923]
[1610397716744,1.798,977.9,977.62,4.00959]
[1610397717346,2.282,978.14,977.62,4.00959]
[1610397717546,2.299,978.4,977.62,4.00959]